[Event "*** Titled Tuesday Blitz"]
[Site "Chess.com"]
[Date "2019.06.04"]
[Round "3"]
[White "MarianPetrov"]
[Black "platy3"]
[Result "1/2-1/2"]
[WhiteElo "2610"]
[BlackElo "2812"]
[TimeControl "180+2"]
[EndTime "13:42:55 PDT"]
[Termination "Game drawn by 50-move rule"]

1. e4 {[%clk 0:03:01.9]} 1... c5 {[%clk 0:03:00.3]} 2. c3 {[%clk 0:02:58.9]}
2... Nf6 {[%clk 0:03:00.4]} 3. e5 {[%clk 0:02:59.6]} 3... Nd5 {[%clk 0:03:01.8]}
4. d4 {[%clk 0:03:00]} 4... cxd4 {[%clk 0:03:02.9]} 5. Nf3 {[%clk 0:03:00.1]}
5... Nc6 {[%clk 0:03:04.1]} 6. cxd4 {[%clk 0:02:52]} 6... d6 {[%clk 0:03:04.9]}
7. Bc4 {[%clk 0:02:52.4]} 7... dxe5 {[%clk 0:03:02.2]} 8. dxe5 {[%clk
0:02:52.6]} 8... Ndb4 {[%clk 0:03:03.4]} 9. Qb3 {[%clk 0:02:49.5]} 9... e6
{[%clk 0:03:01.9]} 10. O-O {[%clk 0:02:46.4]} 10... Na5 {[%clk 0:03:02.4]} 11.
Bb5+ {[%clk 0:02:46.7]} 11... Bd7 {[%clk 0:03:03.4]} 12. Qa4 {[%clk 0:02:43.7]}
12... Bxb5 {[%clk 0:03:04.5]} 13. Qxb5+ {[%clk 0:02:44.7]} 13... Nac6 {[%clk
0:03:06.1]} 14. Nc3 {[%clk 0:02:40.1]} 14... a6 {[%clk 0:03:04.1]} 15. Qe2
{[%clk 0:02:37.1]} 15... Qd3 {[%clk 0:03:04.2]} 16. Bf4 {[%clk 0:02:15.8]} 16...
Qxe2 {[%clk 0:02:55.7]} 17. Nxe2 {[%clk 0:02:16.8]} 17... Nd3 {[%clk 0:02:57.6]}
18. Rad1 {[%clk 0:01:58.5]} 18... O-O-O {[%clk 0:02:53.6]} 19. b3 {[%clk
0:01:50.6]} 19... Bc5 {[%clk 0:02:45.9]} 20. Bg3 {[%clk 0:01:50.9]} 20... h6
{[%clk 0:02:42.1]} 21. h4 {[%clk 0:01:50.9]} 21... Rd7 {[%clk 0:02:40.9]} 22.
Nc3 {[%clk 0:01:42.7]} 22... Rhd8 {[%clk 0:02:31.8]} 23. Ne4 {[%clk 0:01:42.9]}
23... Nxf2 {[%clk 0:01:44.9]} 24. Bxf2 {[%clk 0:01:39.2]} 24... Rxd1 {[%clk
0:01:44.9]} 25. Bxc5 {[%clk 0:01:36.7]} 25... Rxf1+ {[%clk 0:01:46.2]} 26. Kxf1
{[%clk 0:01:37.7]} 26... Rd1+ {[%clk 0:01:48.1]} 27. Ke2 {[%clk 0:01:35]} 27...
Ra1 {[%clk 0:01:49.2]} 28. a4 {[%clk 0:01:28.4]} 28... Kd7 {[%clk 0:01:49.8]}
29. Nd6 {[%clk 0:01:24.5]} 29... Ra2+ {[%clk 0:01:50.5]} 30. Kf1 {[%clk
0:01:24.5]} 30... f5 {[%clk 0:01:42.9]} 31. Nxb7 {[%clk 0:01:04.3]} 31... g5
{[%clk 0:01:43.3]} 32. hxg5 {[%clk 0:01:04.5]} 32... hxg5 {[%clk 0:01:43.5]} 33.
Bd6 {[%clk 0:01:05.4]} 33... g4 {[%clk 0:01:35.4]} 34. Nc5+ {[%clk 0:01:06.1]}
34... Kc8 {[%clk 0:01:33.2]} 35. Ng5 {[%clk 0:01:00.7]} 35... Nd4 {[%clk
0:01:17.3]} 36. Ngxe6 {[%clk 0:01:00.8]} 36... Nc2 {[%clk 0:01:18.8]} 37. Nf4
{[%clk 0:00:50.2]} 37... Ne3+ {[%clk 0:01:19.9]} 38. Ke1 {[%clk 0:00:40]} 38...
Kd8 {[%clk 0:00:39.1]} 39. g3 {[%clk 0:00:25.9]} 39... Ke8 {[%clk 0:00:24.6]}
40. Nxa6 {[%clk 0:00:21.6]} 40... Nc2+ {[%clk 0:00:21.3]} 41. Kd1 {[%clk
0:00:21.7]} 41... Nd4 {[%clk 0:00:22.5]} 42. Nc5 {[%clk 0:00:19.7]} 42... Ra1+
{[%clk 0:00:22.6]} 43. Kd2 {[%clk 0:00:20.1]} 43... Rg1 {[%clk 0:00:24.2]} 44.
Kd3 {[%clk 0:00:16.5]} 44... Nc6 {[%clk 0:00:23.5]} 45. Nh5 {[%clk 0:00:17.3]}
45... Rh1 {[%clk 0:00:21.4]} 46. Nf6+ {[%clk 0:00:16.8]} 46... Kf7 {[%clk
0:00:22.8]} 47. Nd5 {[%clk 0:00:17.6]} 47... Nd8 {[%clk 0:00:23.1]} 48. Nf4
{[%clk 0:00:17.6]} 48... Rg1 {[%clk 0:00:23.3]} 49. e6+ {[%clk 0:00:15.2]} 49...
Ke8 {[%clk 0:00:24.3]} 50. Nd5 {[%clk 0:00:14.1]} 50... Nxe6 {[%clk 0:00:25.8]}
51. Nxe6 {[%clk 0:00:15]} 51... Kd7 {[%clk 0:00:27.4]} 52. Bc5 {[%clk
0:00:16.1]} 52... Rd1+ {[%clk 0:00:27.7]} 53. Kc4 {[%clk 0:00:15.9]} 53... Kxe6
{[%clk 0:00:29]} 54. Nf4+ {[%clk 0:00:15.9]} 54... Kd7 {[%clk 0:00:28.4]} 55. a5
{[%clk 0:00:16.8]} 55... Rc1+ {[%clk 0:00:29.5]} 56. Kd5 {[%clk 0:00:17.4]}
56... Rc3 {[%clk 0:00:29.7]} 57. Bf2 {[%clk 0:00:14.2]} 57... Rf3 {[%clk
0:00:29.4]} 58. Be1 {[%clk 0:00:13.6]} 58... Re3 {[%clk 0:00:30.8]} 59. Bb4
{[%clk 0:00:12]} 59... Rxg3 {[%clk 0:00:29.9]} 60. Ke5 {[%clk 0:00:11.1]} 60...
Rxb3 {[%clk 0:00:30.6]} 61. Be1 {[%clk 0:00:12.1]} 61... Re3+ {[%clk 0:00:22.7]}
62. Kxf5 {[%clk 0:00:12.4]} 62... Rxe1 {[%clk 0:00:24.2]} 63. Kxg4 {[%clk
0:00:13.1]} 63... Ra1 {[%clk 0:00:25.8]} 64. Kf5 {[%clk 0:00:11.6]} 64... Rxa5+
{[%clk 0:00:26.8]} 65. Ke4 {[%clk 0:00:13.5]} 65... Kd6 {[%clk 0:00:28.2]} 66.
Nd3 {[%clk 0:00:14.4]} 66... Ra4+ {[%clk 0:00:29.4]} 67. Ke3 {[%clk 0:00:15.7]}
67... Kd5 {[%clk 0:00:30.7]} 68. Nf4+ {[%clk 0:00:16.9]} 68... Kc4 {[%clk
0:00:31.9]} 69. Ke4 {[%clk 0:00:16.4]} 69... Ra1 {[%clk 0:00:33.1]} 70. Ke5
{[%clk 0:00:15.7]} 70... Re1+ {[%clk 0:00:34.1]} 71. Kf5 {[%clk 0:00:16.6]}
71... Kd4 {[%clk 0:00:35.3]} 72. Ne6+ {[%clk 0:00:17.7]} 72... Kd5 {[%clk
0:00:36.2]} 73. Nf4+ {[%clk 0:00:19.2]} 73... Kd6 {[%clk 0:00:37.8]} 74. Ng6
{[%clk 0:00:18.7]} 74... Re8 {[%clk 0:00:36.3]} 75. Nf4 {[%clk 0:00:19.3]} 75...
Re5+ {[%clk 0:00:35.8]} 76. Kg4 {[%clk 0:00:18.1]} 76... Re3 {[%clk 0:00:29.8]}
77. Kf5 {[%clk 0:00:19]} 77... Kc5 {[%clk 0:00:29.7]} 78. Ne6+ {[%clk
0:00:17.5]} 78... Kd5 {[%clk 0:00:30.8]} 79. Nf4+ {[%clk 0:00:19.4]} 79... Kd6
{[%clk 0:00:32.4]} 80. Ng6 {[%clk 0:00:19.1]} 80... Kd5 {[%clk 0:00:23.4]} 81.
Nf4+ {[%clk 0:00:19.4]} 81... Kd4 {[%clk 0:00:25.1]} 82. Ne6+ {[%clk 0:00:20.5]}
82... Kd3 {[%clk 0:00:26.3]} 83. Nf4+ {[%clk 0:00:21.1]} 83... Kd2 {[%clk
0:00:27.9]} 84. Nd5 {[%clk 0:00:20.5]} 84... Re8 {[%clk 0:00:28.3]} 85. Nf4
{[%clk 0:00:20.3]} 85... Ke3 {[%clk 0:00:29.2]} 86. Nd5+ {[%clk 0:00:21.2]}
86... Kf3 {[%clk 0:00:30.5]} 87. Nf6 {[%clk 0:00:19.6]} 87... Re7 {[%clk
0:00:31.6]} 88. Nd5 {[%clk 0:00:20]} 88... Re1 {[%clk 0:00:32.3]} 89. Nf6 {[%clk
0:00:20.5]} 89... Ke3 {[%clk 0:00:32.6]} 90. Ke5 {[%clk 0:00:21.2]} 90... Kd3+
{[%clk 0:00:32]} 91. Kf5 {[%clk 0:00:22.3]} 91... Kd4 {[%clk 0:00:32.8]} 92. Nh5
{[%clk 0:00:19.7]} 92... Re5+ {[%clk 0:00:33.3]} 93. Kg4 {[%clk 0:00:19.8]}
93... Ke3 {[%clk 0:00:32.7]} 94. Ng3 {[%clk 0:00:20]} 94... Ra5 {[%clk 0:00:32]}
95. Nf5+ {[%clk 0:00:20.5]} 95... Ke4 {[%clk 0:00:32.4]} 96. Ng3+ {[%clk
0:00:21.6]} 96... Ke5 {[%clk 0:00:33.4]} 97. Kf3 {[%clk 0:00:16.9]} 97... Ra3+
{[%clk 0:00:34.5]} 98. Kf2 {[%clk 0:00:18.2]} 98... Kf4 {[%clk 0:00:35]} 99.
Ne2+ {[%clk 0:00:19.2]} 99... Kg4 {[%clk 0:00:34.4]} 100. Nd4 {[%clk 0:00:17.2]}
100... Rd3 {[%clk 0:00:35.4]} 101. Ne2 {[%clk 0:00:15.2]} 101... Kg5 {[%clk
0:00:29.7]} 102. Nc1 {[%clk 0:00:15.9]} 102... Ra3 {[%clk 0:00:28.3]} 103. Ne2
{[%clk 0:00:15.7]} 103... Kf5 {[%clk 0:00:29.1]} 104. Nd4+ {[%clk 0:00:09.3]}
104... Ke4 {[%clk 0:00:29.7]} 105. Ne6 {[%clk 0:00:07.5]} 105... Ra2+ {[%clk
0:00:30.4]} 106. Kg3 {[%clk 0:00:08]} 106... Ke5 {[%clk 0:00:31.5]} 107. Ng5
{[%clk 0:00:07.2]} 107... Ra3+ {[%clk 0:00:31.8]} 108. Kg4 {[%clk 0:00:08.1]}
108... Ra4+ {[%clk 0:00:33.1]} 109. Kg3 {[%clk 0:00:09.3]} 109... Kf5 {[%clk
0:00:33.8]} 110. Nf3 {[%clk 0:00:07.8]} 110... Ra3 {[%clk 0:00:35.2]} 111. Kf2
{[%clk 0:00:08.8]} 111... Kf4 {[%clk 0:00:36.5]} 112. Nd4 {[%clk 0:00:08.4]}
112... Ra2+ {[%clk 0:00:36.5]} 113. Kf1 {[%clk 0:00:09.5]} 113... Ke3 {[%clk
0:00:37.1]} 114. Nf5+ {[%clk 0:00:10.4]} 114... Ke4 {[%clk 0:00:38.2]} 1/2-1/2

[Event "*** Titled Tuesday Blitz"]
[Site "Chess.com"]
[Date "2019.06.04"]
[Round "3"]
[White "tbalabayev"]
[Black "slowdgehammer"]
[Result "1/2-1/2"]
[WhiteElo "2373"]
[BlackElo "2374"]
[TimeControl "180+2"]
[EndTime "13:43:06 PDT"]
[Termination "Game drawn by repetition"]

1. Nf3 {[%clk 0:03:01.9]} 1... c6 {[%clk 0:02:25.6]} 2. g3 {[%clk 0:03:03.8]}
2... d5 {[%clk 0:02:26]} 3. Bg2 {[%clk 0:03:04.8]} 3... Nf6 {[%clk 0:02:27.6]}
4. O-O {[%clk 0:03:06.1]} 4... g6 {[%clk 0:02:29.2]} 5. d3 {[%clk 0:03:07.5]}
5... Bg7 {[%clk 0:02:30.8]} 6. Nbd2 {[%clk 0:03:08.7]} 6... Nbd7 {[%clk
0:02:32.5]} 7. e4 {[%clk 0:03:09.1]} 7... e5 {[%clk 0:02:34]} 8. c3 {[%clk
0:03:03.8]} 8... O-O {[%clk 0:02:34.3]} 9. Qc2 {[%clk 0:03:05.3]} 9... Qc7
{[%clk 0:02:34.3]} 10. a4 {[%clk 0:03:05.3]} 10... a5 {[%clk 0:02:35]} 11. Re1
{[%clk 0:03:05.6]} 11... Re8 {[%clk 0:02:36.2]} 12. Nf1 {[%clk 0:02:52.6]} 12...
dxe4 {[%clk 0:02:31.7]} 13. dxe4 {[%clk 0:02:53.1]} 13... Nc5 {[%clk 0:02:33.3]}
14. N1d2 {[%clk 0:02:31.3]} 14... Be6 {[%clk 0:02:29.2]} 15. Ng5 {[%clk
0:02:31.1]} 15... Bg4 {[%clk 0:02:22.4]} 16. h3 {[%clk 0:02:26.9]} 16... Bd7
{[%clk 0:02:23.6]} 17. Nc4 {[%clk 0:02:27]} 17... h6 {[%clk 0:02:19.1]} 18. Nf3
{[%clk 0:02:26.8]} 18... Be6 {[%clk 0:02:20.1]} 19. Bf1 {[%clk 0:02:25.4]} 19...
Nfd7 {[%clk 0:02:04.1]} 20. b4 {[%clk 0:02:21.4]} 20... axb4 {[%clk 0:02:03.9]}
21. cxb4 {[%clk 0:02:23.3]} 21... Na6 {[%clk 0:02:04.1]} 22. Bd2 {[%clk
0:02:23.1]} 22... Nb6 {[%clk 0:01:55.6]} 23. Ne3 {[%clk 0:02:20.5]} 23... Rad8
{[%clk 0:01:43.2]} 24. Bc3 {[%clk 0:02:04.8]} 24... Nd7 {[%clk 0:01:27.9]} 25.
Rec1 {[%clk 0:01:58.5]} 25... Qb6 {[%clk 0:01:28]} 26. Qb2 {[%clk 0:01:56.3]}
26... f6 {[%clk 0:01:20.9]} 27. Bc4 {[%clk 0:01:44]} 27... Nc7 {[%clk 0:01:11]}
28. Qa2 {[%clk 0:01:34.4]} 28... Kh7 {[%clk 0:01:10.7]} 29. Kg2 {[%clk
0:01:27.8]} 29... Bf8 {[%clk 0:01:06.3]} 30. Rab1 {[%clk 0:01:25.9]} 30... Qa7
{[%clk 0:01:02.7]} 31. Rd1 {[%clk 0:01:19.7]} 31... Nb6 {[%clk 0:01:01.1]} 32.
Bxe6 {[%clk 0:01:19.2]} 32... Nxe6 {[%clk 0:01:03]} 33. Rxd8 {[%clk 0:01:19.6]}
33... Nxd8 {[%clk 0:01:03.8]} 34. a5 {[%clk 0:01:20.4]} 34... Nc8 {[%clk
0:00:44.4]} 35. Rd1 {[%clk 0:01:19.4]} 35... Nd6 {[%clk 0:00:37]} 36. Nc4 {[%clk
0:01:11.2]} 36... Qb8 {[%clk 0:00:18.8]} 37. Nxd6 {[%clk 0:01:06.8]} 37... Bxd6
{[%clk 0:00:20.7]} 38. Qd2 {[%clk 0:01:07.3]} 38... Nf7 {[%clk 0:00:20.4]} 39.
Qa2 {[%clk 0:01:05.6]} 39... Kg7 {[%clk 0:00:20.4]} 40. Nh4 {[%clk 0:01:05.5]}
40... Qc7 {[%clk 0:00:21.3]} 41. Qe2 {[%clk 0:01:06.6]} 41... Rd8 {[%clk
0:00:22]} 42. Qg4 {[%clk 0:01:07.5]} 42... Ng5 {[%clk 0:00:21.8]} 43. Rb1 {[%clk
0:01:04.6]} 43... h5 {[%clk 0:00:22.7]} 44. Qe2 {[%clk 0:01:04.9]} 44... Be7
{[%clk 0:00:21.1]} 45. Nf3 {[%clk 0:01:04.2]} 45... Ne6 {[%clk 0:00:21.8]} 46.
Qe3 {[%clk 0:01:02.7]} 46... Qd7 {[%clk 0:00:22.7]} 47. Rb2 {[%clk 0:01:03.1]}
47... Qd3 {[%clk 0:00:23.7]} 48. Qe1 {[%clk 0:00:55.3]} 48... Qc4 {[%clk
0:00:24.6]} 49. Bd2 {[%clk 0:00:29.9]} 49... Qb5 {[%clk 0:00:19]} 50. Be3 {[%clk
0:00:28.7]} 50... Nd4 {[%clk 0:00:19.9]} 51. Nxd4 {[%clk 0:00:26.1]} 51... exd4
{[%clk 0:00:21.8]} 52. Bd2 {[%clk 0:00:26.7]} 52... d3 {[%clk 0:00:22.8]} 53.
Qe3 {[%clk 0:00:27]} 53... Bd6 {[%clk 0:00:23.3]} 54. Rb3 {[%clk 0:00:26.3]}
54... Be5 {[%clk 0:00:24]} 55. f4 {[%clk 0:00:27]} 55... Bc7 {[%clk 0:00:25]}
56. f5 {[%clk 0:00:26.5]} 56... g5 {[%clk 0:00:25.5]} 57. h4 {[%clk 0:00:27.5]}
57... Qc4 {[%clk 0:00:21.4]} 58. Rc3 {[%clk 0:00:25.2]} 58... Qd4 {[%clk
0:00:10.1]} 59. Qxd4 {[%clk 0:00:22.8]} 59... Rxd4 {[%clk 0:00:10.7]} 60. hxg5
{[%clk 0:00:24.7]} 60... fxg5 {[%clk 0:00:12.1]} 61. b5 {[%clk 0:00:23.8]} 61...
Rxe4 {[%clk 0:00:08.6]} 62. Kf3 {[%clk 0:00:22.1]} 62... Re2 {[%clk 0:00:09.3]}
63. Rxd3 {[%clk 0:00:23.2]} 63... Rh2 {[%clk 0:00:04.4]} 64. Rd7+ {[%clk
0:00:23.2]} 64... Kf6 {[%clk 0:00:06]} 65. Bc3+ {[%clk 0:00:24.1]} 65... Kxf5
{[%clk 0:00:07]} 66. Rxc7 {[%clk 0:00:26]} 66... Rc2 {[%clk 0:00:06.2]} 67. Bd4
{[%clk 0:00:26.2]} 67... g4+ {[%clk 0:00:05.8]} 68. Ke3 {[%clk 0:00:27.2]} 68...
Rg2 {[%clk 0:00:07.7]} 69. Rf7+ {[%clk 0:00:27.3]} 69... Ke6 {[%clk 0:00:08.6]}
70. Rf6+ {[%clk 0:00:28]} 70... Kd5 {[%clk 0:00:10.3]} 71. Rf5+ {[%clk
0:00:29.4]} 71... Kc4 {[%clk 0:00:11.2]} 72. Rxh5 {[%clk 0:00:29.2]} 72... Rxg3+
{[%clk 0:00:12.2]} 73. Ke4 {[%clk 0:00:31.1]} 73... cxb5 {[%clk 0:00:12.4]} 74.
Rc5+ {[%clk 0:00:32.7]} 74... Kb4 {[%clk 0:00:13.5]} 75. Rc7 {[%clk 0:00:33.3]}
75... Kxa5 {[%clk 0:00:14]} 76. Rxb7 {[%clk 0:00:32.3]} 76... b4 {[%clk
0:00:15.2]} 77. Ra7+ {[%clk 0:00:33]} 77... Kb5 {[%clk 0:00:16.3]} 78. Rb7+
{[%clk 0:00:34.9]} 78... Kc4 {[%clk 0:00:17.3]} 79. Rc7+ {[%clk 0:00:35.8]}
79... Kb3 {[%clk 0:00:18.1]} 80. Be3 {[%clk 0:00:36.9]} 80... Rg2 {[%clk
0:00:18]} 81. Kf4 {[%clk 0:00:37.5]} 81... Rc2 {[%clk 0:00:18.2]} 82. Rb7 {[%clk
0:00:38.8]} 82... Rc4+ {[%clk 0:00:18.6]} 83. Kg3 {[%clk 0:00:40.3]} 83... Kc2
{[%clk 0:00:19.6]} 84. Bf4 {[%clk 0:00:37.1]} 84... b3 {[%clk 0:00:20]} 85. Kxg4
{[%clk 0:00:38.1]} 85... b2 {[%clk 0:00:20]} 86. Kf5 {[%clk 0:00:39.3]} 86...
b1=Q {[%clk 0:00:21.1]} 87. Rxb1 {[%clk 0:00:39.4]} 87... Kxb1 {[%clk 0:00:23]}
88. Be5 {[%clk 0:00:40]} 88... Kc2 {[%clk 0:00:23.9]} 89. Ke6 {[%clk 0:00:40.9]}
89... Kd3 {[%clk 0:00:25.1]} 90. Kd5 {[%clk 0:00:42.5]} 90... Ra4 {[%clk
0:00:25.6]} 91. Bd6 {[%clk 0:00:43.6]} 91... Ra5+ {[%clk 0:00:25.9]} 92. Bc5
{[%clk 0:00:45]} 92... Kc3 {[%clk 0:00:26.3]} 93. Kc6 {[%clk 0:00:45.6]} 93...
Kc4 {[%clk 0:00:27.6]} 94. Bb6 {[%clk 0:00:47.2]} 94... Ra6 {[%clk 0:00:28.3]}
95. Kb7 {[%clk 0:00:45.7]} 95... Kb5 {[%clk 0:00:29.4]} 96. Bc7 {[%clk
0:00:46.4]} 96... Re6 {[%clk 0:00:28.6]} 97. Bf4 {[%clk 0:00:43.4]} 97... Re7+
{[%clk 0:00:29.1]} 98. Bc7 {[%clk 0:00:44.9]} 98... Rf7 {[%clk 0:00:29.3]} 99.
Ka8 {[%clk 0:00:42.7]} 99... Ka6 {[%clk 0:00:25.4]} 100. Bb8 {[%clk 0:00:41.9]}
100... Rd7 {[%clk 0:00:24.1]} 101. Be5 {[%clk 0:00:42.4]} 101... Ra7+ {[%clk
0:00:24.5]} 102. Kb8 {[%clk 0:00:42.2]} 102... Re7 {[%clk 0:00:26.4]} 103. Bd6
{[%clk 0:00:39.1]} 103... Rd7 {[%clk 0:00:25.6]} 104. Bg3 {[%clk 0:00:38.1]}
104... Kb6 {[%clk 0:00:25.9]} 105. Ka8 {[%clk 0:00:37.6]} 105... Ra7+ {[%clk
0:00:23]} 106. Kb8 {[%clk 0:00:38]} 106... Rg7 {[%clk 0:00:24.5]} 107. Bf2+
{[%clk 0:00:35.8]} 107... Kc6 {[%clk 0:00:25.5]} 108. Ka8 {[%clk 0:00:34.8]}
108... Rg2 {[%clk 0:00:20]} 109. Be3 {[%clk 0:00:33.1]} 109... Rg3 {[%clk
0:00:18.3]} 110. Bf2 {[%clk 0:00:32.2]} 110... Rf3 {[%clk 0:00:19.2]} 111. Bg1
{[%clk 0:00:32.6]} 111... Kc7 {[%clk 0:00:19.5]} 112. Bh2+ {[%clk 0:00:27.9]}
112... Kb6 {[%clk 0:00:20.1]} 113. Bg1+ {[%clk 0:00:28.6]} 113... Kc6 {[%clk
0:00:21]} 114. Kb8 {[%clk 0:00:27.8]} 114... Rf7 {[%clk 0:00:21.1]} 115. Ka8
{[%clk 0:00:24.9]} 115... Rb7 {[%clk 0:00:19.2]} 116. Bf2 {[%clk 0:00:21.6]}
116... Rb2 {[%clk 0:00:20.1]} 117. Bg1 {[%clk 0:00:20.8]} 117... Kc7 {[%clk
0:00:20.4]} 118. Be3 {[%clk 0:00:18.6]} 118... Rb8+ {[%clk 0:00:17.7]} 119. Ka7
{[%clk 0:00:18.6]} 119... Rb4 {[%clk 0:00:19.2]} 120. Ka6 {[%clk 0:00:17.3]}
120... Kc6 {[%clk 0:00:19.8]} 121. Ka7 {[%clk 0:00:16.5]} 121... Rb7+ {[%clk
0:00:18.3]} 122. Ka8 {[%clk 0:00:16.9]} 122... Re7 {[%clk 0:00:15.8]} 123. Bf2
{[%clk 0:00:17.2]} 123... Rf7 {[%clk 0:00:15.8]} 124. Bg1 {[%clk 0:00:18]}
124... Kb5 {[%clk 0:00:16.8]} 125. Kb8 {[%clk 0:00:16]} 125... Kc6 {[%clk
0:00:17.8]} 126. Ka8 {[%clk 0:00:16.7]} 1/2-1/2

[Event "*** Titled Tuesday Blitz"]
[Site "Chess.com"]
[Date "2019.06.04"]
[Round "4"]
[White "mishanick"]
[Black "Marcus_Harvey"]
[Result "1-0"]
[WhiteElo "3009"]
[BlackElo "2626"]
[TimeControl "180+2"]
[EndTime "13:45:08 PDT"]
[Termination "mishanick won by resignation"]

1. d4 {[%clk 0:03:01.9]} 1... Nf6 {[%clk 0:03:00.5]} 2. c4 {[%clk 0:03:03.3]}
2... e6 {[%clk 0:03:01.8]} 3. Nf3 {[%clk 0:03:04.8]} 3... Bb4+ {[%clk
0:03:02.9]} 4. Nc3 {[%clk 0:03:06.5]} 4... O-O {[%clk 0:03:03.2]} 5. Bg5 {[%clk
0:03:07.2]} 5... d5 {[%clk 0:02:58.7]} 6. Qb3 {[%clk 0:03:03.5]} 6... a5 {[%clk
0:02:52.8]} 7. e3 {[%clk 0:03:03.6]} 7... Nbd7 {[%clk 0:02:43.3]} 8. cxd5 {[%clk
0:03:01.5]} 8... exd5 {[%clk 0:02:41.6]} 9. a3 {[%clk 0:03:03.1]} 9... Be7
{[%clk 0:02:40.5]} 10. Bd3 {[%clk 0:03:03.8]} 10... Nb6 {[%clk 0:02:38.6]} 11.
O-O {[%clk 0:03:03.8]} 11... a4 {[%clk 0:02:39.2]} 12. Qc2 {[%clk 0:03:04.1]}
12... h6 {[%clk 0:02:40.2]} 13. Bh4 {[%clk 0:03:05]} 13... c6 {[%clk 0:02:38.1]}
14. Ne5 {[%clk 0:03:05.9]} 14... Nfd7 {[%clk 0:02:36.5]} 15. Bxe7 {[%clk
0:03:03.4]} 15... Qxe7 {[%clk 0:02:37.1]} 16. f4 {[%clk 0:03:04.9]} 16... f6
{[%clk 0:02:29.2]} 17. Bh7+ {[%clk 0:03:04.7]} 1-0

[Event "*** Titled Tuesday Blitz"]
[Site "Chess.com"]
[Date "2019.06.04"]
[Round "4"]
[White "Dedic8"]
[Black "Gattass"]
[Result "1-0"]
[WhiteElo "2604"]
[BlackElo "2347"]
[TimeControl "180+2"]
[EndTime "13:45:25 PDT"]
[Termination "Dedic8 won by resignation"]

1. d4 {[%clk 0:03:01.9]} 1... Nf6 {[%clk 0:02:59.4]} 2. Nc3 {[%clk 0:03:03.5]}
2... e6 {[%clk 0:02:58.5]} 3. Bf4 {[%clk 0:03:05.1]} 3... d5 {[%clk 0:02:55.8]}
4. Nb5 {[%clk 0:03:04.2]} 4... Na6 {[%clk 0:02:52]} 5. e3 {[%clk 0:03:05.5]}
5... c6 {[%clk 0:02:50.9]} 6. Nc3 {[%clk 0:03:07]} 6... Nc7 {[%clk 0:02:49.5]}
7. Bd3 {[%clk 0:03:07.2]} 7... Bd6 {[%clk 0:02:48.8]} 8. Qf3 {[%clk 0:03:04]}
8... Bxf4 {[%clk 0:02:47.9]} 9. Qxf4 {[%clk 0:03:05.9]} 9... O-O {[%clk
0:02:48.1]} 10. O-O-O {[%clk 0:03:06.2]} 10... Qe7 {[%clk 0:02:46.8]} 11. Nf3
{[%clk 0:03:07.3]} 11... c5 {[%clk 0:02:43.3]} 12. dxc5 {[%clk 0:03:00.5]} 12...
Qxc5 {[%clk 0:02:43.6]} 13. g4 {[%clk 0:03:02.2]} 13... Bd7 {[%clk 0:02:35.2]}
14. g5 {[%clk 0:03:03.4]} 14... Nh5 {[%clk 0:02:34.9]} 15. Qh4 {[%clk
0:03:04.9]} 15... g6 {[%clk 0:02:35.4]} 16. Ne5 {[%clk 0:03:06.4]} 16... Bc6
{[%clk 0:02:29.5]} 17. Be2 {[%clk 0:03:06]} 17... Ng7 {[%clk 0:02:25.6]} 18. Ng4
{[%clk 0:03:07.2]} 18... Nf5 {[%clk 0:02:21.4]} 19. Nf6+ {[%clk 0:03:07.7]} 1-0

[Event "*** Titled Tuesday Blitz"]
[Site "Chess.com"]
[Date "2019.06.04"]
[Round "4"]
[White "vohiraa"]
[Black "SARGISMV"]
[Result "0-1"]
[WhiteElo "2313"]
[BlackElo "2409"]
[TimeControl "180+2"]
[EndTime "13:45:45 PDT"]
[Termination "SARGISMV won by resignation"]

1. e4 {[%clk 0:03:01.9]} 1... e6 {[%clk 0:03:00.9]} 2. d4 {[%clk 0:03:02.3]}
2... d5 {[%clk 0:03:02.8]} 3. Nc3 {[%clk 0:03:01.5]} 3... Bb4 {[%clk 0:03:03]}
4. e5 {[%clk 0:03:01.1]} 4... c5 {[%clk 0:03:03.8]} 5. a3 {[%clk 0:03:01.8]}
5... Bxc3+ {[%clk 0:03:04.4]} 6. bxc3 {[%clk 0:03:03.7]} 6... Ne7 {[%clk
0:03:04.8]} 7. Qg4 {[%clk 0:03:03.1]} 7... O-O {[%clk 0:03:05.7]} 8. Bg5 {[%clk
0:03:01.6]} 8... Nbc6 {[%clk 0:03:04.3]} 9. Bf6 {[%clk 0:02:59.2]} 9... g6
{[%clk 0:02:53.2]} 10. Qg5 {[%clk 0:02:48.6]} 10... Qa5 {[%clk 0:02:53.2]} 11.
Ne2 {[%clk 0:02:29.5]} 11... Nf5 {[%clk 0:02:51.5]} 12. g4 {[%clk 0:02:26.1]}
12... Ncxd4 {[%clk 0:02:40]} 13. gxf5 {[%clk 0:02:19]} 13... Nf3+ {[%clk
0:02:37.6]} 14. Kd1 {[%clk 0:02:15.2]} 14... Nxg5 {[%clk 0:02:37.4]} 15. Bxg5
{[%clk 0:02:17.1]} 15... exf5 {[%clk 0:02:37.3]} 0-1

[Event "*** Titled Tuesday Blitz"]
[Site "Chess.com"]
[Date "2019.06.04"]
[Round "4"]
[White "Caisachess"]
[Black "Satscho"]
[Result "0-1"]
[WhiteElo "2428"]
[BlackElo "2260"]
[TimeControl "180+2"]
[EndTime "13:46:31 PDT"]
[Termination "Satscho won by resignation"]

1. e4 {[%clk 0:03:01.9]} 1... c6 {[%clk 0:03:00.7]} 2. Nc3 {[%clk 0:03:02.3]}
2... d5 {[%clk 0:03:01.7]} 3. Nf3 {[%clk 0:03:02.8]} 3... Nf6 {[%clk 0:03:03.3]}
4. exd5 {[%clk 0:02:58.9]} 4... cxd5 {[%clk 0:03:04.1]} 5. d4 {[%clk 0:02:59.9]}
5... Bg4 {[%clk 0:02:54.6]} 6. Bb5+ {[%clk 0:03:00.2]} 6... Nbd7 {[%clk
0:02:55]} 7. h3 {[%clk 0:03:01.7]} 7... Bxf3 {[%clk 0:02:52.2]} 8. Qxf3 {[%clk
0:02:59.3]} 8... e6 {[%clk 0:02:53.6]} 9. O-O {[%clk 0:02:59.2]} 9... Bd6 {[%clk
0:02:47.7]} 10. Bg5 {[%clk 0:02:55.8]} 10... Be7 {[%clk 0:02:45.5]} 11. Rfe1
{[%clk 0:02:54.9]} 11... O-O {[%clk 0:02:46.1]} 12. Bd3 {[%clk 0:02:53.6]} 12...
h6 {[%clk 0:02:45.9]} 13. Bf4 {[%clk 0:02:50.3]} 13... Re8 {[%clk 0:02:39.3]}
14. Rad1 {[%clk 0:02:49.8]} 14... Nf8 {[%clk 0:02:40.5]} 15. Ne2 {[%clk
0:02:48.1]} 15... a6 {[%clk 0:02:41.5]} 16. Ng3 {[%clk 0:02:49.1]} 16... Bd6
{[%clk 0:02:43]} 17. Bc1 {[%clk 0:02:48.2]} 17... b5 {[%clk 0:02:43.5]} 18. c3
{[%clk 0:02:42.3]} 18... Rb8 {[%clk 0:02:44.2]} 19. Bb1 {[%clk 0:02:42.5]} 19...
a5 {[%clk 0:02:43.5]} 20. Qd3 {[%clk 0:02:42.5]} 20... b4 {[%clk 0:02:45]} 21.
Nh5 {[%clk 0:02:37.5]} 21... Nxh5 {[%clk 0:02:45.4]} 22. g4 {[%clk 0:02:22]}
22... Nf4 {[%clk 0:02:44]} 23. Qf3 {[%clk 0:02:22.3]} 23... N4g6 {[%clk
0:02:40.7]} 24. Kg2 {[%clk 0:02:06.9]} 0-1